Workbook

Sheet 附件1
A1: 附件1
A2: 2025年中小学校舍安全保障长效机制 补助经费安排表
A3: 单位：万元
A4: 县区名称 | B4: 2025年安排资金 | C4: 闽财教指〔2024〕 101号提前下达中央资金 | D4: 本次下达中央资金 （负数为追减资金）
A5: 福建省 | B5: =B6+B18+B26+B38+B49+B66+B77+B85+B95 -> 45200 | C5: =C6+C18+C26+C38+C49+C66+C77+C85+C95 -> 41130 | D5: =D6+D18+D26+D38+D49+D66+D77+D85+D95 -> 4070
A6: 福州市 | B6: =SUM(B7:B17) -> 4139 | C6: =SUM(C7:C17) -> 3489 | D6: =SUM(D7:D17) -> 650
A7: 仓山区 | B7: 179 | C7: 218 | D7: =B7-C7 -> -39
A8: 马尾区 | B8: 129 | C8: 88 | D8: =B8-C8 -> 41
A9: 晋安区 | B9: 117 | C9: 151 | D9: -34
A10: 长乐区 | B10: 291 | C10: 307 | D10: -16
A11: 闽侯县 | B11: 621 | C11: 308 | D11: 313
A12: 连江县 | B12: 551 | C12: 458 | D12: 93
A13: 罗源县 | B13: 252 | C13: 227 | D13: 25
A14: 闽清县 | B14: 286 | C14: 305 | D14: -19
A15: 永泰县 | B15: 332 | C15: 294 | D15: 38
A16: 福清市 | B16: 939 | C16: 809 | D16: 130
A17: 高新区管委会 | B17: 442 | C17: 324 | D17: 118
A18: 莆田市 | B18: =SUM(B19:B25) -> 3555 | C18: =SUM(C19:C25) -> 3608 | D18: =SUM(D19:D25) -> -53
A19: 城厢区 | B19: 627 | C19: 626 | D19: =B19-C19 -> 1
A20: 涵江区 | B20: 348 | C20: 359 | D20: =B20-C20 -> -11
A21: 荔城区 | B21: 676 | C21: 672 | D21: 4
A22: 秀屿区 | B22: 868 | C22: 839 | D22: 29
A23: 仙游县 | B23: 879 | C23: 981 | D23: -102
A24: 湄洲岛 | B24: 101 | C24: 54 | D24: 47
A25: 北岸管委会 | B25: 56 | C25: 77 | D25: -21
A26: 三明市 | B26: =SUM(B27:B37) -> 5417 | C26: =SUM(C27:C37) -> 5626 | D26: =SUM(D27:D37) -> -209
A27: 三元区 | B27: 635 | C27: 681 | D27: =B27-C27 -> -46
A28: 沙县区 | B28: 337 | C28: 361 | D28: =B28-C28 -> -24
A29: 明溪县 | B29: 224 | C29: 163 | D29: 61
A30: 清流县 | B30: 364 | C30: 392 | D30: -28
A31: 宁化县 | B31: 555 | C31: 541 | D31: 14
A32: 大田县 | B32: 1215 | C32: 1325 | D32: -110
A33: 尤溪县 | B33: 665 | C33: 657 | D33: 8
A34: 将乐县 | B34: 273 | C34: 226 | D34: 47
A35: 泰宁县 | B35: 317 | C35: 304 | D35: 13
A36: 建宁县 | B36: 574 | C36: 749 | D36: -175
A37: 永安市 | B37: 258 | C37: 227 | D37: 31
A38: 泉州市 | B38: =SUM(B39:B48) -> 7380 | C38: =SUM(C39:C48) -> 7012 | D38: =SUM(D39:D48) -> 368
A39: 洛江区 | B39: 176 | C39: 122 | D39: =B39-C39 -> 54
A40: 泉港区 | B40: 169 | C40: 193 | D40: =B40-C40 -> -24
A41: 惠安县 | B41: 750 | C41: 675 | D41: 75
A42: 安溪县 | B42: 1721 | C42: 1604 | D42: 117
A43: 永春县 | B43: 522 | C43: 578 | D43: -56
A44: 德化县 | B44: 756 | C44: 590 | D44: 166
A45: 石狮市 | B45: 309 | C45: 266 | D45: 43
A46: 晋江市 | B46: 906 | C46: 804 | D46: 102
A47: 南安市 | B47: 1756 | C47: 1936 | D47: -180
A48: 台商投资区 | B48: 315 | C48: 244 | D48: 71
A49: 漳州市 | B49: =SUM(B50:B65) -> 7678 | C49: =SUM(C50:C65) -> 6419 | D49: =SUM(D50:D65) -> 1259
A50: 芗城区 | B50: 340 | C50: 277 | D50: =B50-C50 -> 63
A51: 龙文区 | B51: 540 | C51: 352 | D51: =B51-C51 -> 188
A52: 龙海区 | B52: 511 | C52: 354 | D52: 157
A53: 长泰区 | B53: 419 | C53: 339 | D53: 80
A54: 云霄县 | B54: 901 | C54: 848 | D54: 53
A55: 漳浦县 | B55: 1276 | C55: 1082 | D55: 194
A56: 诏安县 | B56: 690 | C56: 590 | D56: 100
A57: 东山县 | B57: 363 | C57: 335 | D57: 28
A58: 南靖县 | B58: 504 | C58: 450 | D58: 54
A59: 平和县 | B59: 404 | C59: 481 | D59: -77
A60: 华安县 | B60: 439 | C60: 327 | D60: 112
A61: 常山开发区 | B61: 126 | C61: 100 | D61: 26
A62: 漳州招商局开发区 | B62: 192 | C62: 118 | D62: 74
A63: 漳州台商投资区 | B63: 338 | C63: 302 | D63: 36
A64: 漳州古雷港经济开发区 | B64: 448 | C64: 317 | D64: 131
A65: 漳州高新技术产业开发区 | B65: 187 | C65: 147 | D65: 40
A66: 南平市 | B66: =SUM(B67:B76) -> 5062 | C66: =SUM(C67:C76) -> 4583 | D66: =SUM(D67:D76) -> 479
A67: 延平区 | B67: 327 | C67: 342 | D67: =B67-C67 -> -15
A68: 建阳区 | B68: 609 | C68: 542 | D68: =B68-C68 -> 67
A69: 顺昌县 | B69: 401 | C69: 286 | D69: 115
A70: 浦城县 | B70: 396 | C70: 366 | D70: 30
A71: 光泽县 | B71: 417 | C71: 367 | D71: 50
A72: 松溪县 | B72: 725 | C72: 680 | D72: 45
A73: 政和县 | B73: 690 | C73: 558 | D73: 132
A74: 邵武市 | B74: 380 | C74: 315 | D74: 65
A75: 武夷山市 | B75: 416 | C75: 425 | D75: -9
A76: 建瓯市 | B76: 701 | C76: 702 | D76: -1
A77: 龙岩市 | B77: =SUM(B78:B84) -> 7328 | C77: =SUM(C78:C84) -> 6164 | D77: =SUM(D78:D84) -> 1164
A78: 新罗区 | B78: 1512 | C78: 604 | D78: =B78-C78 -> 908
A79: 永定区 | B79: 991 | C79: 943 | D79: =B79-C79 -> 48
A80: 长汀县 | B80: 1334 | C80: 1246 | D80: 88
A81: 上杭县 | B81: 1113 | C81: 1037 | D81: 76
A82: 武平县 | B82: 1146 | C82: 1219 | D82: -73
A83: 连城县 | B83: 616 | C83: 533 | D83: 83
A84: 漳平市 | B84: 616 | C84: 582 | D84: 34
A85: 宁德市 | B85: =SUM(B86:B94) -> 4183 | C85: =SUM(C86:C94) -> 3867 | D85: =SUM(D86:D94) -> 316
A86: 蕉城区 | B86: 386 | C86: 377 | D86: =B86-C86 -> 9
A87: 霞浦县 | B87: 705 | C87: 589 | D87: =B87-C87 -> 116
A88: 古田县 | B88: 449 | C88: 486 | D88: -37
A89: 屏南县 | B89: 297 | C89: 255 | D89: 42
A90: 寿宁县 | B90: 635 | C90: 502 | D90: 133
A91: 周宁县 | B91: 207 | C91: 182 | D91: 25
A92: 柘荣县 | B92: 206 | C92: 193 | D92: 13
A93: 福安市 | B93: 666 | C93: 645 | D93: 21
A94: 福鼎市 | B94: 632 | C94: 638 | D94: -6
A95: 平潭综合实验区 | B95: 458 | C95: 362 | D95: 96
